bitfinex-derivatives/quotes_BTCF0:USTF0_20251118
["timestamp","ask_amount","ask_price","bid_price","bid_amount"]
[1763461529048,0.04523,91327.0,91326.0,0.04661375]
[1763461529458,0.04523,91327.0,91326.0,0.05931375]
[1763461530160,0.04523,91327.0,91326.0,0.04661375]
[1763461532552,0.04623,91327.0,91326.0,0.04661375]
[1763461533046,0.04523,91327.0,91326.0,0.04661375]
[1763461533656,0.04623,91327.0,91326.0,0.04661375]
[1763461534459,0.04623,91327.0,91326.0,0.05931375]
[1763461535762,0.04623,91327.0,91326.0,0.04661375]
[1763461540256,0.05313,91327.0,91326.0,0.04661375]
[1763461542165,0.05313,91327.0,91326.0,0.00027375]
[1763461543466,0.05313,91327.0,91326.0,0.04661375]
[1763461552066,0.05213,91327.0,91326.0,0.04661375]
[1763461552866,0.05313,91327.0,91326.0,0.04661375]
[1763461554471,0.0079,91327.0,91326.0,0.04661375]
[1763461555778,0.02995,91327.0,91326.0,0.04661375]
[1763461556072,0.0079,91327.0,91326.0,0.04661375]
[1763461556276,0.02995,91327.0,91326.0,0.04661375]
[1763461556481,0.02895,91327.0,91326.0,0.04661375]
[1763461556670,0.0069,91327.0,91326.0,0.04661375]
[1763461557071,0.05202,91327.0,91326.0,0.04661375]
[1763461558276,0.02895,91327.0,91326.0,0.04661375]
[1763461558668,0.05202,91327.0,91326.0,0.04661375]
[1763461558869,0.0069,91327.0,91326.0,0.04661375]
[1763461559274,0.02804,91327.0,91326.0,0.04661375]
[1763461560471,0.0069,91327.0,91326.0,0.04661375]
[1763461560675,0.05111,91327.0,91326.0,0.04661375]
[1763461561073,0.0069,91327.0,91326.0,0.04661375]
[1763461561471,0.08349908,91343.0,91342.0,0.04351]
[1763461561675,0.04421,91343.0,91342.0,0.04351]
[1763461562973,0.04521,91343.0,91342.0,0.04351]
[1763461563475,0.04621,91343.0,91342.0,0.04351]
[1763461564672,0.04521,91343.0,91342.0,0.04351]
[1763461564980,0.04621,91343.0,91342.0,0.04351]
[1763461574082,0.002,91343.0,91342.0,0.04351]
[1763461574882,0.04621,91343.0,91342.0,0.04351]
[1763461581495,0.02314,91343.0,91342.0,0.04351]
[1763461581791,0.04597,91343.0,91342.0,0.04351]
[1763461586298,0.02314,91343.0,91342.0,0.04351]
[1763461586491,0.04597,91343.0,91342.0,0.04351]
[1763461588901,0.04597,91343.0,91342.0,0.07292555]
[1763461594103,0.04597,91343.0,91342.0,0.04351]
[1763461594300,0.04597,91343.0,91342.0,0.07292914]
[1763461595107,0.04597,91343.0,91342.0,0.04351]
[1763461595996,0.04554,91341.0,91340.0,0.00073267]
[1763461596606,0.04554,91341.0,91340.0,0.04528267]
[1763461597202,0.04554,91341.0,91340.0,0.05220267]
[1763461598610,0.04654,91341.0,91340.0,0.05220267]
[1763461601703,0.04554,91341.0,91340.0,0.05220267]
[1763461602198,0.04554,91341.0,91340.0,0.05847267]
[1763461603004,0.04654,91341.0,91340.0,0.05847267]
[1763461603603,0.04554,91341.0,91340.0,0.05847267]
[1763461605009,0.04654,91341.0,91340.0,0.05847267]
[1763461605196,0.02383,91341.0,91340.0,0.05847267]
[1763461605507,0.04654,91341.0,91340.0,0.05847267]
[1763461606008,0.01325,91355.0,91340.0,0.05847267]
[1763461606009,0.08482908,91364.0,91363.0,0.04455]
[1763461606205,0.04554,91364.0,91363.0,0.04455]
[1763461606396,0.03928908,91370.0,91363.0,0.04455]
[1763461606598,0.03928908,91376.0,91375.0,0.05774]
[1763461606798,0.04554,91378.0,91377.0,0.04455]
[1763461608507,0.04654,91378.0,91377.0,0.04455]
[1763461608905,0.04754,91378.0,91377.0,0.04455]
[1763461611612,0.002,91378.0,91377.0,0.04455]
[1763461613712,0.02483,91378.0,91377.0,0.04455]
[1763461614214,0.04654,91378.0,91377.0,0.04455]
[1763461614512,0.02283,91378.0,91377.0,0.04455]
[1763461615110,0.02283,91378.0,91377.0,0.04635446]
[1763461616605,0.04570421,91387.0,91386.0,0.04455]
[1763461617003,0.04570421,91387.0,91386.0,0.04635446]
[1763461617606,0.04670421,91387.0,91386.0,0.04635446]
[1763461618109,0.04570421,91387.0,91386.0,0.04635446]
[1763461618311,0.04670421,91387.0,91386.0,0.04635446]
[1763461620507,0.04670421,91387.0,91386.0,0.00180446]
[1763461620712,0.04395,91369.0,91368.0,0.04325421]
[1763461621915,0.04395,91369.0,91368.0,0.05716421]
[1763461622213,0.04395,91369.0,91368.0,0.04475659]
[1763461622608,0.04395,91369.0,91368.0,0.05866659]
[1763461623011,0.04395,91369.0,91368.0,0.04475659]
[1763461625114,0.04395,91369.0,91368.0,0.05866659]
[1763461627309,0.04395,91369.0,91368.0,0.04475659]
[1763461633025,0.04395,91369.0,91368.0,0.00166659]
[1763461633417,0.04395,91369.0,91368.0,0.04325421]
[1763461633614,0.04395,91369.0,91368.0,0.04625897]
[1763461634620,0.04395,91369.0,91368.0,0.00316897]
[1763461635326,0.04395,91351.0,91350.0,0.057]
[1763461635523,0.04395,91351.0,91350.0,0.04382267]
[1763461640026,0.04395,91351.0,91350.0,0.05691267]
[1763461640228,0.04395,91351.0,91350.0,0.08631254]
[1763461641728,0.04395,91351.0,91350.0,0.07322254]
[1763461641917,0.04395,91351.0,91350.0,0.04382267]
[1763461644026,0.04395,91351.0,91350.0,0.04532548]
[1763461648722,0.04395,91351.0,91350.0,0.00223548]
[1763461649922,0.04395,91351.0,91350.0,0.00150281]
[1763461650736,0.04395,91351.0,91350.0,0.04752548]
[1763461652332,0.04395,91351.0,91350.0,0.00223548]
[1763461652536,0.04395,91351.0,91350.0,0.02466548]
[1763461652830,0.04395,91351.0,91350.0,0.00223548]
[1763461653032,0.04395,91351.0,91350.0,0.00150281]
[1763461655319,0.04395,91351.0,91350.0,0.02393281]
[1763461655525,0.04395,91351.0,91350.0,0.00150281]
[1763461661734,0.04395,91351.0,91350.0,0.00300562]
[1763461671941,0.04516,91337.0,91336.0,0.07468987]
[1763461673343,0.04516,91337.0,91336.0,0.04629]
[1763461674141,0.04516,91337.0,91336.0,0.07568987]
[1763461676345,0.04516,91337.0,91336.0,0.04629]
[1763461676550,0.04735803,91340.0,91339.0,0.04529]
[1763461676939,0.00219803,91340.0,91339.0,0.04529]
[1763461677247,0.21831716,91350.0,91349.0,0.04533]
[1763461677446,0.04614803,91350.0,91349.0,0.04533]
[1763461677639,0.04614803,91350.0,91349.0,0.04683303]
[1763461684245,0.085576,91350.0,91349.0,0.04683303]
[1763461685945,0.085576,91350.0,91349.0,0.00150303]
[1763461687851,0.085576,91350.0,91349.0,0.02393303]
[1763461688052,0.085576,91350.0,91349.0,0.00150303]
[1763461689453,0.085576,91350.0,91349.0,0.02393303]
[1763461689648,0.085576,91350.0,91349.0,0.04683303]
[1763461690145,0.085576,91350.0,91349.0,0.04833584]
[1763461692352,0.00219803,91350.0,91349.0,0.04833584]
[1763461692557,0.00016421,91360.0,91349.0,0.04833584]
[1763461692558,0.03959218,91360.0,91359.0,0.04533]
[1763461692857,0.00236224,91360.0,91359.0,0.04533]
[1763461693251,0.00016421,91360.0,91359.0,0.04833584]
[1763461696652,0.08337797,91375.0,91374.0,0.04533]
[1763461696853,0.04395,91375.0,91374.0,0.04533]
[1763461697249,0.04395,91375.0,91374.0,0.04833584]
[1763461697955,0.04495,91375.0,91374.0,0.04833584]
[1763461698949,0.0518,91375.0,91374.0,0.04833584]
[1763461699151,0.04495,91375.0,91374.0,0.04833584]
[1763461702161,0.001,91375.0,91374.0,0.04833584]
[1763461702959,0.024,91375.0,91374.0,0.04833584]
[1763461703161,0.04587,91375.0,91374.0,0.04833584]
[1763461707063,0.024,91375.0,91374.0,0.04833584]
[1763461707247,0.001,91375.0,91374.0,0.04833584]
[1763461709062,0.04237421,91384.0,91383.0,0.04307]
[1763461709362,0.04237421,91384.0,91383.0,0.04607584]
[1763461710059,0.02127421,91384.0,91383.0,0.04607584]
[1763461710363,0.04237421,91384.0,91383.0,0.04607584]
[1763461711557,0.00016421,91384.0,91383.0,0.04607584]
[1763461712462,0.04221,91399.0,91398.0,0.04307]
[1763461713562,0.04321,91399.0,91398.0,0.04607584]
[1763461713754,0.04421,91399.0,91398.0,0.04607584]
[1763461714356,0.04221,91399.0,91398.0,0.04607584]
[1763461714661,0.04321,91399.0,91398.0,0.04607584]
[1763461715264,0.001,91399.0,91398.0,0.04607584]
[1763461715960,0.00219803,91400.0,91399.0,0.04307]
[1763461716465,0.00219803,91400.0,91399.0,0.04607584]
[1763461717868,0.00027351,91406.0,91405.0,0.05517]
[1763461718066,0.02138351,91406.0,91405.0,0.05517]
[1763461718561,0.04248351,91406.0,91405.0,0.04607584]
[1763461718763,0.04248351,91406.0,91405.0,0.05776584]
[1763461719169,0.04248351,91406.0,91405.0,0.04607584]
[1763461719465,0.04248351,91406.0,91405.0,0.02497584]
[1763461719859,0.04348351,91406.0,91405.0,0.04607584]
[1763461721163,0.00127351,91406.0,91405.0,0.05796584]
[1763461721370,0.02238351,91406.0,91405.0,0.05796584]
[1763461721666,0.00127351,91406.0,91405.0,0.05796584]
[1763461723468,0.04348351,91406.0,91405.0,0.04607584]
[1763461725158,0.04348351,91406.0,91405.0,0.05796584]
[1763461725371,0.04348351,91406.0,91405.0,0.04607584]
[1763461729071,0.04348351,91406.0,91405.0,0.04487584]
[1763461729879,0.02238351,91406.0,91405.0,0.05616584]
[1763461730373,0.04348351,91406.0,91405.0,0.05616584]
[1763461734267,0.04348351,91406.0,91405.0,0.04487584]
[1763461737666,0.04348351,91406.0,91405.0,0.05856584]
[1763461738272,0.00127351,91406.0,91405.0,0.05856584]
[1763461738573,0.02350351,91406.0,91405.0,0.05856584]
[1763461738871,0.00127351,91406.0,91405.0,0.05856584]
[1763461739176,0.04493351,91406.0,91405.0,0.05856584]
[1763461739670,0.00127351,91406.0,91405.0,0.05856584]
[1763461743371,0.00127351,91406.0,91405.0,0.09769456]
[1763461744179,0.00127351,91406.0,91405.0,0.05856584]
[1763461744381,0.00127351,91406.0,91405.0,0.09769456]
[1763461744784,0.00127351,91406.0,91405.0,0.04487584]
[1763461744785,0.04493351,91406.0,91405.0,0.04487584]
[1763461745776,0.04493351,91406.0,91405.0,0.05856584]
[1763461745986,0.00127351,91406.0,91405.0,0.08798345]
[1763461746183,0.00127351,91406.0,91405.0,0.05856584]
[1763461746586,0.00127351,91406.0,91405.0,0.09769456]
[1763461747089,0.04493351,91406.0,91405.0,0.08408608]
[1763461747290,0.04493351,91406.0,91405.0,0.04487584]
[1763461747584,0.04493351,91406.0,91405.0,0.05856584]
[1763461751785,0.04493351,91406.0,91405.0,0.04487584]
[1763461757379,0.04366,91404.0,91403.0,0.02245]
[1763461757583,0.30754,91404.0,91403.0,0.02245]
[1763461759093,0.05742,91395.0,91394.0,0.08344024]
[1763461759390,0.05742,91395.0,91394.0,0.04423]
[1763461760492,0.04366,91395.0,91394.0,0.04423]
[1763461767994,0.34729277,91402.0,91401.0,0.0447]
[1763461768198,0.308,91402.0,91401.0,0.0447]
[1763461770603,0.05666,91390.0,91389.0,0.00016412]
[1763461770795,0.05885803,91390.0,91389.0,0.00016412]
[1763461771802,0.04367,91371.0,91370.0,0.05582]
[1763461772095,0.04367,91371.0,91370.0,0.05655267]
[1763461772303,0.04367,91371.0,91370.0,0.04370267]
[1763461772994,0.04367,91371.0,91370.0,0.04470267]
[1763461773295,0.04383412,91380.0,91379.0,0.04297]
[1763461773598,0.04603215,91380.0,91379.0,0.04297]
[1763461773801,0.02343215,91380.0,91379.0,0.04297]
[1763461774099,0.00236215,91380.0,91379.0,0.04297]
[1763461774495,0.02343215,91380.0,91379.0,0.04297]
[1763461774897,0.04603215,91380.0,91379.0,0.04297]
[1763461779302,0.00236215,91380.0,91379.0,0.04297]
[1763461779709,0.02343215,91380.0,91379.0,0.04297]
[1763461780096,0.04603215,91380.0,91379.0,0.04297]
[1763461781703,0.02343215,91380.0,91379.0,0.04297]
[1763461781893,0.00236215,91380.0,91379.0,0.04297]
[1763461782296,0.00236215,91380.0,91379.0,0.1525247]
[1763461782903,0.00236215,91380.0,91379.0,0.04297]
[1763461783200,0.00016412,91380.0,91379.0,0.04297]
[1763461783392,0.05606,91400.0,91399.0,0.04297]
[1763461783700,0.04586803,91400.0,91399.0,0.04297]
[1763461785305,0.04686803,91400.0,91399.0,0.04297]
[1763461785603,0.04367,91391.0,91390.0,0.04313412]
[1763461785806,0.04367,91391.0,91390.0,0.04386679]
[1763461792509,0.04367,91391.0,91390.0,0.05671679]
[1763461792902,0.217836,91400.0,91399.0,0.04297]
[1763461793108,0.04586803,91400.0,91399.0,0.04297]
[1763461793304,0.00219803,91400.0,91399.0,0.04297]
[1763461793512,0.02326803,91400.0,91399.0,0.04297]
[1763461793804,0.04586803,91400.0,91399.0,0.04297]
[1763461794905,0.04686803,91400.0,91399.0,0.04297]
[1763461799714,0.04686803,91400.0,91390.0,0.04391412]
[1763461799715,0.0441,91391.0,91390.0,0.04391412]
[1763461799910,0.0441,91391.0,91390.0,0.04464679]
[1763461800310,0.0441,91391.0,91390.0,0.05501679]
[1763461800506,0.0441,91391.0,91390.0,0.04464679]
[1763461800710,0.0441,91391.0,91390.0,0.00089679]
[1763461800905,0.0441,91391.0,91390.0,0.00016412]
[1763461801210,0.0441,91391.0,91390.0,0.00089679]
[1763461801512,0.0441,91391.0,91390.0,0.04464679]
[1763461801713,0.0441,91391.0,91390.0,0.02201679]
[1763461801914,0.0441,91391.0,91390.0,0.04464679]
[1763461802309,0.0441,91391.0,91390.0,0.00089679]
[1763461802617,0.03936123,91397.0,91390.0,0.04464679]
[1763461802813,0.02333803,91400.0,91399.0,0.04375]
[1763461803007,0.04629803,91400.0,91399.0,0.04375]
[1763461803407,0.00219803,91400.0,91399.0,0.04375]
[1763461804716,0.001,91400.0,91399.0,0.04375]
[1763461805318,0.002,91400.0,91399.0,0.04375]
[1763461805821,0.001,91400.0,91399.0,0.04375]
[1763461806716,0.0451,91400.0,91399.0,0.04375]
[1763461806915,0.02433803,91400.0,91399.0,0.04375]
[1763461807514,0.00319803,91400.0,91399.0,0.04375]
[1763461808118,0.04729803,91400.0,91399.0,0.04375]
[1763461808318,0.04629803,91400.0,91399.0,0.04375]
[1763461808915,0.02333803,91400.0,91399.0,0.04375]
[1763461809119,0.04629803,91400.0,91399.0,0.04375]
[1763461811036,0.04629803,91400.0,91399.0,0.05185]
[1763461811214,0.04629803,91400.0,91399.0,0.04375]
[1763461811824,0.04629803,91400.0,91399.0,0.05682]
[1763461814125,0.00219803,91400.0,91399.0,0.05682]
[1763461814327,0.02141351,91406.0,91405.0,0.04375]
[1763461815229,0.04437351,91406.0,91405.0,0.04375]
[1763461815626,0.02141351,91406.0,91405.0,0.04375]
[1763461816429,0.00127351,91406.0,91405.0,0.04375]
[1763461816829,0.02241351,91406.0,91405.0,0.04375]
[1763461817130,0.04537351,91406.0,91405.0,0.04375]
[1763461821718,0.04632,91401.0,91400.0,0.02262267]
[1763461822125,0.04632,91401.0,91400.0,0.04587267]
[1763461824730,0.02353351,91406.0,91405.0,0.04514]
[1763461825232,0.04659351,91406.0,91405.0,0.04514]
[1763461826134,0.04759351,91406.0,91405.0,0.04514]
[1763461830239,0.00127351,91406.0,91405.0,0.04514]
[1763461830637,0.00016412,91409.0,91408.0,0.04465]
[1763461831838,0.00116412,91409.0,91408.0,0.04465]
[1763461837041,1.26626042,91413.0,91412.0,0.04465]
[1763461837239,1.26626042,91413.0,91412.0,0.1541652]
[1763461838541,1.26726042,91413.0,91412.0,0.1541652]
[1763461840044,1.26826042,91413.0,91412.0,0.1541652]
[1763461840540,1.25579397,91413.0,91412.0,0.21294718]
[1763461840743,1.18579397,91413.0,91412.0,0.27427715]
[1763461840941,1.15079397,91413.0,91412.0,0.27427715]
[1763461841450,1.15079397,91413.0,91412.0,0.16491715]
[1763461841635,1.15079397,91413.0,91412.0,0.2635252]
[1763461841835,1.15079397,91413.0,91412.0,0.1541652]
[1763461842144,1.15079397,91413.0,91412.0,0.2635252]
[1763461842444,1.15079397,91413.0,91412.0,0.16525515]
[1763461842643,1.15079397,91413.0,91412.0,0.1541652]
[1763461842840,1.15079397,91413.0,91412.0,0.2635252]
[1763461843146,1.11135383,91413.0,91412.0,0.2635252]
[1763461843343,1.11135383,91413.0,91412.0,0.1541652]
[1763461844046,1.11135383,91413.0,91412.0,0.2635252]
[1763461844247,1.11135383,91413.0,91412.0,0.1541652]
[1763461844446,1.11135383,91413.0,91412.0,0.2635252]
[1763461846838,6e-08,91413.0,91412.0,0.6635252]
[1763461847242,0.00016412,91422.0,91421.0,0.1095044]
[1763461847443,0.00016412,91422.0,91421.0,0.3732644]
[1763461847738,0.01388,91428.0,91427.0,0.1094972]
[1763461848248,0.03567,91440.0,91439.0,0.1094829]
[1763461848440,0.03567,91440.0,91439.0,0.3732429]
[1763461848643,0.05787,91440.0,91439.0,0.26376]
[1763461850952,0.06187,91440.0,91439.0,0.26376]
[1763461852950,0.06187,91440.0,91439.0,0.29304549]
[1763461853745,0.06187,91440.0,91439.0,0.26376]
[1763461853949,0.06187,91440.0,91439.0,0.29304549]
[1763461854945,0.03967,91440.0,91439.0,0.29304549]
[1763461855150,0.004,91440.0,91439.0,0.26372]
[1763461855550,0.01788,91440.0,91439.0,0.26372]
[1763461856246,0.01788,91440.0,91439.0,0.30276732]
[1763461856651,0.01788,91440.0,91439.0,0.26372]
[1763461857053,0.03967,91440.0,91439.0,0.26372]
[1763461857454,0.01788,91440.0,91439.0,0.26372]
[1763461858454,0.002398,91440.0,91439.0,0.37308]
[1763461858854,0.000398,91440.0,91439.0,0.37308]
[1763461859353,0.000398,91440.0,91439.0,0.40234187]
[1763461859556,0.000398,91440.0,91439.0,0.37308]
[1763461859748,0.000398,91440.0,91439.0,0.41212732]
[1763461859952,0.000398,91440.0,91439.0,0.26372]
[1763461860152,0.000398,91440.0,91439.0,0.37308]
[1763461860356,0.00016412,91449.0,91448.0,0.1094721]
[1763461860657,0.00016412,91449.0,91448.0,0.41218248]
[1763461860860,0.00016412,91449.0,91448.0,0.52150248]
[1763461861246,0.00016412,91449.0,91448.0,0.4824721]
[1763461861446,0.0132,91465.0,91448.0,0.4824721]
[1763461861447,0.0132,91465.0,91464.0,0.1094529]
[1763461861654,0.0132,91465.0,91464.0,0.3731329]
[1763461861850,0.0132,91465.0,91464.0,0.40238417]
[1763461862354,0.0132,91470.0,91469.0,0.1094469]
[1763461862652,0.00016402,91474.0,91473.0,0.1094422]
[1763461862858,0.00016402,91474.0,91473.0,0.3731222]
[1763461863560,0.00016402,91474.0,91473.0,0.4824422]
[1763461863749,0.00016402,91474.0,91473.0,0.51169347]
[1763461863949,0.00016402,91474.0,91473.0,0.4824422]
[1763461864144,0.00016402,91474.0,91473.0,0.4834422]
[1763461864349,0.00016402,91474.0,91473.0,0.3741222]
[1763461865049,0.00016402,91474.0,91473.0,0.4834422]
[1763461865453,0.00016402,91474.0,91473.0,0.4844422]
[1763461865653,0.00016402,91474.0,91473.0,0.3751222]
[1763461866061,0.00016402,91474.0,91473.0,0.4844422]
[1763461866757,0.00016402,91474.0,91473.0,0.5234439]
[1763461867350,0.00016402,91474.0,91473.0,0.4844422]
[1763461867551,0.00016402,91474.0,91473.0,0.3751222]
[1763461868158,0.00016402,91474.0,91473.0,0.4844422]
[1763461868362,0.0132,91488.0,91485.0,0.1094278]
[1763461868560,0.02346327,91486.0,91485.0,0.3730278]
[1763461868758,0.00027327,91486.0,91485.0,0.3730278]
[1763461869765,0.00027327,91486.0,91485.0,0.3740278]
[1763461870657,0.00027327,91486.0,91485.0,0.40320231]
[1763461871155,0.00027327,91486.0,91485.0,0.4833078]
[1763461871355,0.04481327,91486.0,91485.0,0.37388]
[1763461871554,0.04481327,91486.0,91485.0,0.2646]
[1763461872464,0.00027327,91486.0,91485.0,0.2646]
[1763461872661,0.04481327,91486.0,91485.0,0.001]
[1763461872856,0.04481327,91486.0,91485.0,0.26456]
[1763461879358,0.04481327,91486.0,91485.0,0.001]
[1763461879559,0.04481327,91486.0,91485.0,0.26452]
[1763461880265,0.04481327,91486.0,91485.0,0.15952]
[1763461880462,0.0443,91481.0,91480.0,0.00219803]
[1763461887270,0.0443,91481.0,91480.0,0.03135259]
[1763461888266,0.0443,91481.0,91480.0,0.00219803]
[1763461888972,0.0443,91481.0,91480.0,0.03149477]
[1763461889166,0.0443,91481.0,91480.0,0.00219803]
[1763461890373,0.04219,91478.0,91477.0,0.02929674]
[1763461890772,0.04219,91473.0,91472.0,0.03894358]
[1763461891077,0.01352,91476.0,91470.0,0.00073267]
[1763461891078,0.04219,91471.0,91470.0,0.00073267]
[1763461891370,0.04219,91466.0,91465.0,0.03894358]
[1763461891574,0.04219,91466.0,91465.0,0.06121358]
[1763461891874,0.04219,91466.0,91460.0,0.05914804]
[1763461891875,0.04219,91461.0,91460.0,0.00073267]
[1763461892767,0.04119,91461.0,91460.0,0.00073267]
[1763461893467,0.04119,91461.0,91460.0,0.00173267]
[1763461894167,0.04119,91461.0,91460.0,0.04711267]
[1763461895271,0.04119,91461.0,91460.0,0.04611267]
[1763461895473,0.02102,91470.0,91469.0,0.01286]
[1763461895673,0.02321803,91470.0,91469.0,0.05824]
[1763461895867,0.04438803,91470.0,91469.0,0.05824]
[1763461898265,0.04235402,91475.0,91474.0,0.04538]
[1763461898476,0.00016402,91475.0,91474.0,0.04538]
[1763461900280,0.02118402,91475.0,91474.0,0.04538]
[1763461900475,0.00016402,91475.0,91474.0,0.04538]
[1763461901178,0.00016402,91475.0,91474.0,0.154821]
[1763461902275,0.03936123,91509.0,91485.0,0.1548078]
[1763461902478,0.01352,91511.0,91485.0,0.4184078]
[1763461903477,0.00227327,91486.0,91485.0,0.4184078]
[1763461904978,0.00227327,91486.0,91485.0,0.47699266]
[1763461905477,0.00227327,91486.0,91485.0,0.4184078]
[1763461906370,0.00010849,91495.0,91494.0,0.154797]
[1763461906571,0.04219,91518.0,91517.0,0.04538]
[1763461906765,0.08144794,91518.0,91517.0,0.04538]
[1763461906971,0.04219,91518.0,91517.0,0.04538]
[1763461907271,0.03925794,91522.0,91521.0,0.04538]
[1763461907272,0.04219,91522.0,91521.0,0.04538]
[1763461907469,0.02102,91522.0,91521.0,0.04538]
[1763461907682,0.02102,91522.0,91521.0,0.30902]
[1763461907865,0.02129315,91526.0,91525.0,0.04538]
[1763461908070,0.04246315,91526.0,91525.0,0.04538]
[1763461908369,0.00027315,91526.0,91525.0,0.04538]
[1763461909376,0.00227315,91526.0,91525.0,0.04538]
[1763461909568,0.00427315,91526.0,91525.0,0.04538]
[1763461910077,3.15e-06,91526.0,91525.0,0.04538]
[1763461911174,0.05571,91553.0,91552.0,0.04538]
[1763461912482,0.04219,91553.0,91552.0,0.04538]
[1763461912678,0.04619,91553.0,91552.0,0.04538]
[1763461913486,0.04619,91553.0,91552.0,0.05824]
[1763461913779,0.004,91553.0,91552.0,0.05824]
[1763461914873,0.002,91553.0,91552.0,0.05824]
[1763461915479,0.01352,91568.0,91552.0,0.05824]
[1763461915679,0.04219,91561.0,91560.0,0.04611267]
[1763461916176,0.00219803,91570.0,91560.0,0.05897267]
[1763461916386,0.04438803,91570.0,91569.0,0.04538]
[1763461917667,0.04219,91570.0,91569.0,0.04538]
[1763461918382,0.04419,91570.0,91569.0,0.04538]
[1763461918780,0.02302,91570.0,91569.0,0.04538]
[1763461918976,0.002,91570.0,91569.0,0.04538]
[1763461919173,0.002,91570.0,91569.0,0.04451563]
[1763461919371,0.0243,91570.0,91569.0,0.04451563]
[1763461919675,0.002,91570.0,91569.0,0.04451563]
[1763461919974,0.0243,91570.0,91569.0,0.04451563]
[1763461921178,0.002,91570.0,91569.0,0.04451563]
[1763461922279,0.04743,91570.0,91569.0,0.04451563]
[1763461922784,0.002,91570.0,91569.0,0.04451563]
[1763461923978,0.0243,91570.0,91569.0,0.04451563]
[1763461924983,0.04743,91570.0,91569.0,0.04451563]
[1763461926482,0.04643,91570.0,91569.0,0.04451563]
[1763461926783,0.04643,91570.0,91569.0,0.04551563]
[1763461926982,0.04543,91570.0,91569.0,0.04551563]
[1763461927483,0.04543,91570.0,91569.0,0.04651563]
[1763461928176,0.05844,91581.0,91580.0,0.0232]
[1763461928382,0.05844,91581.0,91580.0,0.02393267]
[1763461928785,0.05844,91581.0,91580.0,0.00073267]
[1763461929081,0.04543,91581.0,91580.0,0.04506267]
[1763461929285,0.0223,91581.0,91580.0,0.04506267]
[1763461929474,0.05895,91592.0,91591.0,0.04433]
[1763461929671,0.0223,91592.0,91591.0,0.04433]
[1763461930279,0.01301,91602.0,91590.0,0.11003477]
[1763461930280,0.04543,91602.0,91601.0,0.04433]
[1763461930583,0.04543,91602.0,91601.0,0.0232]
[1763461930584,0.05844,91602.0,91601.0,0.0232]
[1763461930770,0.04543,91601.0,91600.0,0.00073267]
[1763461932579,0.04543,91593.0,91592.0,0.00016383]
[1763461933387,0.04543,91571.0,91570.0,0.26100169]
[1763461933584,0.04543,91571.0,91570.0,0.27518267]
[1763461933985,0.04543,91571.0,91570.0,0.04506267]
[1763461934186,0.04543,91571.0,91570.0,0.30850267]
[1763461934490,0.04543,91571.0,91570.0,0.00073267]
[1763461934675,0.04543,91571.0,91570.0,0.00173267]
[1763461934983,0.04543,91562.0,91561.0,0.00016383]
[1763461935985,0.04443,91562.0,91561.0,0.00016383]
[1763461936185,0.04443,91562.0,91561.0,3.83e-06]
[1763461936383,0.05686,91552.0,91551.0,0.26344]
[1763461936784,0.04543,91539.0,91538.0,0.0232]
[1763461936978,0.04443,91535.0,91534.0,0.30777]
[1763461937690,0.04343,91535.0,91534.0,0.30777]
[1763461937989,0.05860383,91544.0,91543.0,0.04433]
[1763461938387,0.00016383,91544.0,91543.0,0.04433]
[1763461939983,0.05702,91568.0,91567.0,0.04357]
[1763461940192,0.04401,91568.0,91567.0,0.04357]
[1763461940578,0.01301,91584.0,91569.0,0.04357]
[1763461940784,0.02187,91570.0,91569.0,0.04357]
[1763461941289,0.04401,91570.0,91569.0,0.04357]
[1763461942197,0.04620803,91570.0,91569.0,0.04357]
[1763461942695,0.04720803,91570.0,91569.0,0.04357]
[1763461943084,0.04820803,91570.0,91569.0,0.04357]
[1763461943794,0.02606803,91570.0,91569.0,0.04357]
[1763461944191,0.02606803,91570.0,91566.0,0.01312]
[1763461944192,0.0001632,91579.0,91578.0,0.04357]
[1763461944389,3.2e-06,91579.0,91578.0,0.1528867]
[1763461944591,0.04428291,91606.0,91605.0,0.04357]
[1763461944792,0.00027291,91606.0,91605.0,0.04357]
[1763461945193,0.04428291,91606.0,91605.0,0.04357]
[1763461945899,0.04401,91599.0,91598.0,0.08252304]
[1763461946194,0.00027291,91606.0,91605.0,0.04357]
[1763461946393,0.00027291,91606.0,91596.0,0.00016383]
[1763461946394,0.02187,91597.0,91596.0,0.08268687]
[1763461946794,0.00027291,91606.0,91605.0,0.04357]
[1763461946795,0.04428291,91606.0,91605.0,0.04357]
[1763461947097,0.04428291,91606.0,91605.0,0.02136]
[1763461947299,0.04428291,91606.0,91600.0,0.04416]
[1763461947300,0.04535,91601.0,91600.0,0.04416]
[1763461947504,0.04562291,91606.0,91605.0,0.04416]
[1763461948197,0.04562291,91606.0,91598.0,0.03890731]
[1763461948404,0.04535,91599.0,91598.0,0.04416]
[1763461948607,0.04535,91599.0,91598.0,0.30776]
[1763461949913,0.00219803,91600.0,91599.0,0.04416]
[1763461950112,0.04754803,91600.0,91599.0,0.02212]
[1763461950408,0.04535,91597.0,91596.0,0.00016383]
[1763461951702,0.04535,91597.0,91596.0,0.04432383]
[1763461952506,0.04535,91597.0,91596.0,0.00016383]
[1763461953409,0.04535,91597.0,91596.0,0.04432383]
[1763461953818,0.01910693,91597.0,91596.0,0.04432383]
[1763461954122,0.04176693,91597.0,91596.0,0.04432383]
[1763461954316,0.00219803,91600.0,91599.0,0.04416]
[1763461954618,0.02293291,91606.0,91605.0,0.04416]
[1763461955812,0.04662291,91606.0,91605.0,0.04416]
[1763461956017,0.04662291,91606.0,91605.0,0.30772]
[1763461956218,0.02393291,91606.0,91605.0,0.30772]
[1763461956723,0.04385794,91638.0,91609.0,0.04416]
[1763461956919,0.04535,91615.0,91614.0,0.04432373]
[1763461957717,0.00219803,91630.0,91614.0,0.04432373]
[1763461957917,0.04535,91621.0,91620.0,0.26083169]
[1763461958122,0.04535,91621.0,91620.0,0.04416]
[1763461958322,0.04535,91615.0,91614.0,0.00016373]
[1763461958718,0.04635,91615.0,91614.0,0.00016373]
[1763461959522,0.04735,91615.0,91614.0,0.04432373]
[1763461959819,0.002,91615.0,91614.0,0.04432373]
[1763461961122,0.04735,91615.0,91614.0,0.04432373]
[1763461962312,0.04735,91615.0,91614.0,0.02228373]
[1763461962513,0.04735,91615.0,91614.0,0.00016373]
[1763461962714,0.04735,91615.0,91614.0,0.04432373]